fUST/lending_fUST_20250901
["ID","MTS","AMOUNT","RATE_DAILY","PERIOD"]
[382658609,1756698246837,5000.0,0.0001475,2]
[382658610,1756698248341,-178.37004141,0.00015015,2]
[382658611,1756698250065,-163.75024067,0.00015015,2]
[382658612,1756698253295,-195.62,0.00015015,2]
[382658613,1756698254917,3993.101405,0.0001475,2]
[382658614,1756698254941,1006.898595,0.0001475,2]
[382658615,1756698255611,-171.62759792,0.00015015,2]
[382658616,1756698257151,-160.93290096,0.00014925,2]
[382658617,1756698260315,-195.78297897,0.00014925,2]
[382658618,1756698260336,-80.76497983,0.00015015,2]
[382658619,1756698263688,-153.9573891,0.00015015,2]
[382658620,1756698269017,-188.67,0.00015015,2]
[382658621,1756698270376,5000.0,0.0001475,2]
[382658622,1756698271190,-227.43032654,0.00015015,2]
[382658623,1756698274940,-227.14,0.00015015,2]
[382658624,1756698278864,3993.111405,0.0001475,2]
[382658625,1756698278887,1006.888595,0.0001475,2]
[382658626,1756698278930,-323.88,0.00014925,2]
[382658627,1756698285073,-156.12,0.00014925,2]
[382658628,1756698285099,-10.47741666,0.00015015,2]
[382658629,1756698285122,-101.97443956,0.00015015,2]
[382658630,1756698286813,-55.17217207,0.00015015,2]
[382658631,1756698286838,-106.76782793,0.00015199,2]
[382658632,1756698289600,-241.13335249,0.00015199,2]
[382658633,1756698292663,-132.09881958,0.00015199,2]
[382658634,1756698292685,-249.55181704,0.00015414,2]
[382658635,1756698296809,-169.91423159,0.00015047,2]
[382658636,1756698300156,-191.56099551,0.00014925,2]
[382658637,1756698302349,-288.43900449,0.00014925,2]
[382658638,1756698302372,-18.60135542,0.00015047,2]
[382658639,1756698303265,5000.0,0.0001475,2]
[382658640,1756698304363,-205.92919851,0.00015047,2]
[382658641,1756698306478,-300.42387482,0.00015047,2]
[382658642,1756698308647,-422.3925944,0.00015047,2]
[382658643,1756698310318,-151.34458855,0.00015047,2]
[382658644,1756698313513,-152.85773566,0.00014925,2]
[382658645,1756698314558,3993.121405,0.00014719,2]
[382658646,1756698314581,10000.01,0.00014719,2]
[382658647,1756698314604,10000.01,0.00014719,2]
[382658648,1756698314627,5323.8074374,0.00014719,2]
[382658649,1756698316381,-487.21361991,0.00014925,2]
[382658650,1756698318046,-169.47864443,0.00014925,2]
[382658651,1756698318068,-19.92083537,0.00015047,2]
[382658652,1756698320651,-206.06024472,0.00015047,2]
[382658653,1756698324314,-478.19002038,0.00015047,2]
[382658654,1756698327366,-233.04856911,0.00014897,2]
[382658655,1756698329808,-399.46826027,0.00014897,2]
[382658656,1756698331729,-300.0,0.00014897,2]
[382658657,1756698333961,-268.83252321,0.00014897,2]
[382658658,1756698336753,-448.41143089,0.00014897,2]
[382658659,1756698350386,-224.35375475,0.00014897,2]
[382658660,1756698352928,-262.13604441,0.00014897,2]
[382658661,1756698355898,-255.23961229,0.00014897,2]
[382658662,1756698357652,-213.18847883,0.00014897,2]
[382658663,1756698359324,-170.65452162,0.00014897,2]
[382658664,1756698361294,-154.11,0.00014897,2]
[382658665,1756698364031,-205.92919854,0.00014897,2]
[382658666,1756698365606,-153.01102579,0.00014897,2]
[382658667,1756698367273,-166.66634935,0.00014897,2]
[382658668,1756698369647,-164.69517072,0.00014897,2]
[382658669,1756698373603,-329.30984606,0.00014897,2]
[382658670,1756698375169,-180.59312173,0.00014897,2]
[382658671,1756698376703,-178.86528761,0.00014897,2]
[382658672,1756698378240,-189.69645233,0.00014897,2]
[382658673,1756698380373,-252.77713597,0.00014897,2]
[382658674,1756698404759,177.500298,0.00014713,2]
[382658675,1756698404982,177.500298,0.00014713,120]
[382658676,1756698416240,-232.2853997,0.00014897,2]
[382658677,1756698418353,-16.72781682,0.00014897,2]
[382658678,1756698418376,-216.37087318,0.00014925,2]
[382658679,1756698419131,-245.2499281,0.00014925,2]
[382658680,1756698420744,-18.37919872,0.00014925,2]
[382658681,1756698420768,-334.38302737,0.00014925,2]
[382658682,1756698437822,4498.7022646,0.0001475,2]
[382658683,1756698437849,501.2977354,0.0001475,2]
[382658684,1756698441618,2779.7041679,0.0001471,2]
[382658685,1756698461184,5000.0,0.0001475,2]
[382658686,1756698477664,1719.0080967,0.0001475,2]
[382658687,1756698477686,3280.9919033,0.0001475,2]
[382658688,1756698485907,5000.0,0.0001475,2]
[382658689,1756698502288,1719.0180967,0.0001475,2]
[382658690,1756698502521,3280.9819033,0.0001475,2]
[382658691,1756698510366,5000.0,0.0001475,2]
[382658693,1756698527332,1719.0280967,0.0001475,2]
[382658694,1756698527354,3280.9719033,0.0001475,2]
[382658695,1756698535000,3442.0073149,0.0001433,2]
[382658696,1756698535890,3277.0307818,0.0001475,2]
[382658697,1756698535911,1722.9692182,0.0001475,2]
[382658698,1756698537456,2607.0277825,0.00027397,120]
[382658699,1756698551089,-145.61697263,0.00014925,2]
[382658700,1756698551109,-480.0,0.00014925,2]
[382658701,1756698551129,-480.0,0.00014925,2]
[382658702,1756698551150,-482.44762185,0.00014925,2]
[382658703,1756698551170,-482.83445905,0.00014925,2]
[382658704,1756698551190,-480.0,0.00014925,2]
[382658705,1756698551210,-523.29,0.00014925,2]
[382658706,1756698551231,-697.94,0.00014925,2]
[382658707,1756698551252,-925.83,0.00014925,2]
[382658708,1756698551272,-480.0,0.00014925,2]
[382658709,1756698551292,-519.92539704,0.00014925,2]
[382658710,1756698551312,-485.1066742,0.00014925,2]
[382658711,1756698551331,-481.92811076,0.00014925,2]
[382658712,1756698551351,-480.0,0.00014925,2]
[382658713,1756698551371,-105.70951164,0.00014925,2]
[382658714,1756698551426,5000.0,0.0001475,2]
[382658715,1756698559904,3277.0407818,0.0001475,2]
[382658716,1756698559928,1722.9592182,0.0001475,2]
[382658717,1756698575844,5000.0,0.0001475,2]
[382658718,1756698584003,3277.0507818,0.0001475,2]
[382658719,1756698584030,1722.9492182,0.0001475,2]
[382658720,1756698599385,5000.0,0.0001475,2]
[382658721,1756698607310,3277.0607818,0.0001475,2]
[382658722,1756698607334,1722.9392182,0.0001475,2]
[382658723,1756698615462,5000.0,0.0001475,2]
[382658724,1756698624322,3277.0707818,0.0001475,2]
[382658725,1756698624344,1722.9292182,0.0001475,2]
[382658790,1756698632553,5000.0,0.0001475,2]
[382658844,1756698636236,180.70105,7.177e-05,2]
[382658845,1756698636638,180.70105,9.569e-05,2]
[382658846,1756698636848,180.70105,0.00011961,2]
[382658847,1756698637057,180.70105,0.00014354,2]
[382658872,1756698638148,-242.0,0.00014924,2]
[382658874,1756698638157,-300.0,0.00014924,2]
[382658876,1756698638167,-1200.0,0.00014924,2]
[382658878,1756698638176,-374.29048836,0.00014925,2]
[382658880,1756698638185,-481.82486354,0.00014925,2]
[382658882,1756698638194,-480.0,0.00014925,2]
[382658884,1756698638204,-2147.31,0.00014925,2]
[382658886,1756698638214,-480.0,0.00014925,2]
[382658888,1756698638223,-482.23772739,0.00014925,2]
[382658890,1756698638233,-480.0,0.00014925,2]
[382658892,1756698638242,-511.69,0.00014925,2]
[382658894,1756698638251,-1163.0,0.00014925,2]
[382658896,1756698638260,-1163.0,0.00014925,2]
[382658897,1756698638270,-522.98,0.00014925,2]
[382658899,1756698638279,-480.0,0.00014925,2]
[382658901,1756698638289,-480.0,0.00014925,2]
[382658903,1756698638299,-594.8,0.00014925,2]
[382658905,1756698638308,-1144.22,0.00014925,2]
[382658907,1756698638317,-480.0,0.00014925,2]
[382658909,1756698638326,-647.07,0.00014925,2]
[382658911,1756698638335,-480.0,0.00014925,2]
[382658913,1756698638344,-480.0,0.00014925,2]
[382658915,1756698638354,-481.4460075,0.00014925,2]
[382658917,1756698638364,-523.13,0.00014925,2]
[382658919,1756698638373,-480.0,0.00014925,2]
[382658921,1756698638383,-1985.9,0.00014925,2]
[382658923,1756698638392,-614.68,0.00014925,2]
[382658925,1756698638402,-482.22866156,0.00014925,2]
[382658927,1756698638412,-480.0,0.00014925,2]
[382658929,1756698638421,-481.49182011,0.00014925,2]
[382658931,1756698638430,-481.83224873,0.00014925,2]
[382658933,1756698638440,-529.5,0.00014925,2]
[382658935,1756698638449,-1673.09,0.00014925,2]
[382658937,1756698638457,-480.0,0.00014925,2]
[382658939,1756698638465,-480.0,0.00014925,2]
[382658941,1756698638474,-876.96,0.00014925,2]
[382658943,1756698638483,-480.0,0.00014925,2]
[382658945,1756698638491,-220.25010647,0.00014925,2]
[382658947,1756698638500,-152.6224328,0.00014947,2]
[382658949,1756698638510,-1163.0,0.00015044,2]
[382658951,1756698638519,-500.0,0.00015199,2]
[382658953,1756698638529,-480.0,0.00015199,2]
[382658955,1756698638539,-480.0,0.00015199,2]
[382658957,1756698638548,-480.0,0.00015199,2]
[382658959,1756698638558,-480.0,0.00015199,2]
[382658961,1756698638567,-523.29,0.00015199,2]
[382658963,1756698638576,-697.94,0.00015199,2]
[382658965,1756698638586,-925.83,0.00015199,2]
[382658968,1756698638596,-480.0,0.00015199,2]
[382658969,1756698638606,-480.0,0.00015199,2]
[382658971,1756698638615,-494.09355426,0.00015199,2]
[382658974,1756698638624,-480.0,0.00015199,2]
[382658976,1756698638634,-2147.31,0.00015199,2]
[382658978,1756698638643,-480.0,0.00015199,2]
[382658979,1756698638653,-480.0,0.00015199,2]
[382658981,1756698638662,-511.69,0.00015199,2]
[382658983,1756698638672,-522.98,0.00015199,2]
[382658986,1756698638682,-480.0,0.00015199,2]
[382658988,1756698638691,-594.8,0.00015199,2]
[382658990,1756698638701,-1144.22,0.00015199,2]
[382658992,1756698638710,-480.0,0.00015199,2]
[382658994,1756698638720,-647.07,0.00015199,2]
[382658996,1756698638729,-480.0,0.00015199,2]
[382658998,1756698638738,-480.0,0.00015199,2]
[382659000,1756698638747,-523.13,0.00015199,2]
[382659002,1756698638756,-480.0,0.00015199,2]
[382659004,1756698638765,-1985.9,0.00015199,2]
[382659006,1756698638774,-614.68,0.00015199,2]
[382659008,1756698638783,-480.0,0.00015199,2]
[382659010,1756698638792,-529.5,0.00015199,2]
[382659012,1756698638802,-1673.09,0.00015199,2]
[382659014,1756698638811,-480.0,0.00015199,2]
[382659016,1756698638820,-440.63463237,0.00015199,2]
[382659018,1756698638829,-876.96,0.00015199,2]
[382659019,1756698638838,-481.89667699,0.00015199,2]
[382659020,1756698638849,-152.62243278,0.00015371,2]
[382659021,1756698638858,-212.65454973,0.00015414,2]
[382659022,1756698638867,-151.26416307,0.00015425,2]
[382659023,1756698638876,-250.0,0.00015467,2]
[382659024,1756698638885,-269.87920589,0.00015472,2]
[382659025,1756698638894,-500.0,0.00015472,2]
[382659026,1756698638903,-500.0,0.00015472,2]
[382659027,1756698638911,-500.0,0.00015472,2]
[382659028,1756698638920,-500.0,0.00015472,2]
[382659029,1756698638929,-500.0,0.00015472,2]
[382659030,1756698638938,-500.0,0.00015472,2]
[382659031,1756698638947,-500.0,0.00015472,2]
[382659032,1756698638955,-500.0,0.00015472,2]
[382659033,1756698638964,-500.0,0.00015472,2]
[382659034,1756698638973,-640.66667773,0.00015472,2]
[382659035,1756698638982,-500.0,0.00015473,2]
[382659036,1756698638991,-480.0,0.00015473,2]
[382659037,1756698638999,-480.0,0.00015473,2]
[382659038,1756698639008,-480.0,0.00015473,2]
[382659039,1756698639017,-480.0,0.00015473,2]
[382659040,1756698639026,-523.29,0.00015473,2]
[382659041,1756698639039,-697.94,0.00015473,2]
[382659042,1756698639048,-925.83,0.00015473,2]
[382659043,1756698639057,-480.0,0.00015473,2]
[382659044,1756698639066,-480.0,0.00015473,2]
[382659045,1756698639076,-480.0,0.00015473,2]
[382659046,1756698639085,-2147.31,0.00015473,2]
[382659047,1756698639094,-480.0,0.00015473,2]
[382659048,1756698639106,-480.0,0.00015473,2]
[382659049,1756698639115,-511.69,0.00015473,2]
[382659050,1756698639124,-522.98,0.00015473,2]
[382659051,1756698639133,-480.0,0.00015473,2]
[382659052,1756698639142,-594.8,0.00015473,2]
[382659053,1756698639151,-1144.22,0.00015473,2]
[382659054,1756698639161,-480.0,0.00015473,2]
[382659055,1756698639170,-647.07,0.00015473,2]
[382659057,1756698639180,-480.0,0.00015473,2]
[382659059,1756698639189,-480.0,0.00015473,2]
[382659061,1756698639199,-523.13,0.00015473,2]
[382659063,1756698639209,-480.0,0.00015473,2]
[382659065,1756698639218,-1985.9,0.00015473,2]
[382659067,1756698639228,-614.68,0.00015473,2]
[382659069,1756698639238,-480.0,0.00015473,2]
[382659071,1756698639248,-529.5,0.00015473,2]
[382659073,1756698639257,-1673.09,0.00015473,2]
[382659075,1756698639266,-480.0,0.00015473,2]
[382659077,1756698639276,-876.96,0.00015473,2]
[382659079,1756698639286,-500.0,0.00015747,2]
[382659081,1756698639295,-480.0,0.00015747,2]
[382659083,1756698639304,-480.0,0.00015747,2]
[382659085,1756698639314,-480.0,0.00015747,2]
[382659087,1756698639323,-614.86338946,0.00015747,2]
[382659089,1756698639333,-523.29,0.00015747,2]
[382659091,1756698639342,-697.94,0.00015747,2]
[382659093,1756698639353,-925.83,0.00015747,2]
[382659095,1756698639363,-480.0,0.00015747,2]
[382659098,1756698639372,-480.0,0.00015747,2]
[382659100,1756698639382,-482.48106718,0.00015747,2]
[382659102,1756698639392,-2147.31,0.00015747,2]
[382659104,1756698639401,-480.0,0.00015747,2]
[382659106,1756698639411,-480.0,0.00015747,2]
[382659108,1756698639420,-511.69,0.00015747,2]
[382659109,1756698639429,-522.98,0.00015747,2]
[382659111,1756698639438,-407.48,0.00015747,2]
[382659113,1756698639448,-594.8,0.00015747,2]
[382659115,1756698639457,-1144.22,0.00015747,2]
[382659117,1756698639466,-480.0,0.00015747,2]
[382659119,1756698639475,-647.07,0.00015747,2]
[382659121,1756698639485,-480.0,0.00015747,2]
[382659123,1756698639494,-480.0,0.00015747,2]
[382659125,1756698639502,-523.13,0.00015747,2]
[382659127,1756698639512,-480.0,0.00015747,2]
[382659129,1756698639521,-1985.9,0.00015747,2]
[382659131,1756698639530,-614.68,0.00015747,2]
[382659133,1756698639539,-480.0,0.00015747,2]
[382659135,1756698639548,-529.5,0.00015747,2]
[382659137,1756698639558,-1673.09,0.00015747,2]
[382659139,1756698639567,-480.0,0.00015747,2]
[382659141,1756698639577,-876.96,0.00015747,2]
[382659143,1756698639586,-152.62243278,0.00015794,2]
[382659145,1756698639595,-2261.247093,0.00015794,2]
[382659147,1756698639605,-1360.00050872,0.00015816,2]
[382659149,1756698639614,-250.29,0.00015816,3]
[382659151,1756698639625,-448.41,0.00015816,3]
[382659153,1756698639634,-154.11,0.00015816,3]
[382659155,1756698639644,-151.0,0.00015817,2]
[382659157,1756698639654,-262.89679858,0.00015817,2]
[382659159,1756698639663,-151.0,0.00015817,2]
[382659162,1756698639673,-151.0,0.00015817,2]
[382659164,1756698639682,-151.0,0.00015817,2]
[382659166,1756698639691,-151.0,0.00015817,2]
[382659168,1756698639701,-151.0,0.00015817,2]
[382659170,1756698639711,-151.0,0.00015817,2]
[382659172,1756698639720,-250.0,0.00015817,2]
[382659174,1756698639730,-151.0,0.00015817,2]
[382659176,1756698639740,-250.0,0.00015817,2]
[382659178,1756698639750,-151.0,0.00015817,2]
[382659180,1756698639760,-250.0,0.00015817,2]
[382659182,1756698639770,-151.0,0.00015817,2]
[382659184,1756698639780,-250.0,0.00015817,2]
[382659186,1756698639791,-151.0,0.00015817,2]
[382659188,1756698639801,-244.24243975,0.00015817,2]
[382659190,1756698639811,-151.0,0.00015817,2]
[382659192,1756698639821,-209.40437684,0.00015817,2]
[382659194,1756698639830,-500.0,0.00015817,2]
[382659196,1756698639839,-500.0,0.00015817,2]
[382659198,1756698639849,-500.0,0.00015817,2]
[382659200,1756698639858,-500.0,0.00015817,2]
[382659203,1756698639867,-500.0,0.00015817,2]
[382659205,1756698639876,-500.0,0.00015817,2]
[382659207,1756698639885,-457.19693535,0.00015817,2]
[382659209,1756698639894,-480.0,0.00015824,2]
[382659211,1756698639903,-480.0,0.00015824,2]
[382659213,1756698639913,-480.0,0.00015824,2]
[382659215,1756698639922,-775.81,0.00015824,2]
[382659217,1756698639931,-480.0,0.00015824,2]
[382659219,1756698639940,-1107.17,0.00015824,2]
[382659221,1756698639950,-203.87399798,0.00015825,2]
[382659223,1756698639959,-480.0,0.00015825,2]
[382659225,1756698639969,-888.74,0.00015825,2]
[382659227,1756698639978,-480.0,0.00015825,2]
[382659229,1756698639987,-480.0,0.00015825,2]
[382659231,1756698639996,-483.29225201,0.00015825,2]
[382659232,1756698640006,-483.3550606,0.00015825,2]
[382659234,1756698640015,-483.61291283,0.00015825,2]
[382659237,1756698640025,-480.0,0.00015825,2]
[382659239,1756698640037,-482.92940266,0.00015825,2]
[382659241,1756698640047,-480.0,0.00015825,2]
[382659242,1756698640056,-480.0,0.00015825,2]
[382659245,1756698640066,-480.0,0.00015825,2]
[382659246,1756698640075,-480.0,0.00015825,2]
[382659248,1756698640084,-480.0,0.00015825,2]
[382659250,1756698640093,-542.74,0.00015825,2]
[382659252,1756698640103,-481.86328089,0.00015825,2]
[382659254,1756698640114,-482.5624001,0.00015825,2]
[382659256,1756698640123,-135098.64681137,0.00015826,2]
[382659258,1756698640133,-754.4,0.00015894,3]
[382659260,1756698640142,-3327.01,0.00015904,2]
[382659262,1756698640151,-588.93,0.00015904,2]
[382659264,1756698640161,-1361.19,0.00015904,2]
[382659266,1756698640170,-480.0,0.00015904,2]
[382659290,1756698640374,-4714.97,0.00015904,2]
[382659293,1756698640385,-740.37,0.00015904,2]
[382659296,1756698640395,-1102.76,0.00015904,2]
[382659299,1756698640405,-4873.15,0.00015904,2]
[382659302,1756698640414,-4621.05,0.00015904,2]
[382659305,1756698640423,-1926.67,0.00015904,2]
[382659308,1756698640433,-480.0,0.00015904,2]
[382659311,1756698640442,-541.23,0.00015904,2]
[382659314,1756698640452,-480.0,0.00015904,2]
[382659317,1756698640461,-1405.48,0.00015904,2]
[382659319,1756698640470,-3234.33,0.00015904,2]
[382659321,1756698640480,-797.19,0.00015905,3]
[382659323,1756698640489,-267.52,0.00015915,3]
[382659325,1756698640498,-195.62,0.00015915,3]
[382659327,1756698640508,-609.11,0.00015915,3]
[382659329,1756698640517,-480.0,0.00015925,2]
[382659331,1756698640529,-480.0,0.00015925,2]
[382659333,1756698640538,-1103.54,0.00015925,2]
[382659335,1756698640548,-480.0,0.00015925,2]
[382659337,1756698640558,-480.0,0.00015925,2]
[382659339,1756698640567,-480.0,0.00015925,2]
[382659341,1756698640577,-480.0,0.00015925,2]
[382659343,1756698640586,-1023.86,0.00015925,2]
[382659345,1756698640596,-481.61529543,0.00015925,2]
[382659347,1756698640605,-480.0,0.00015925,2]
[382659349,1756698640615,-482.55470668,0.00015925,2]
[382659351,1756698640625,-606.79827218,0.00015925,2]
[382659353,1756698640634,-766.44,0.00015925,2]
[382659356,1756698640645,-480.0,0.00015925,2]
[382659358,1756698640655,-524.7,0.00015925,2]
[382659360,1756698640665,-1031.4,0.00015925,2]
[382659362,1756698640674,-480.0,0.00015925,2]
[382659364,1756698640683,-1112.37,0.00015925,2]
[382659366,1756698640692,-716.09,0.00015925,2]
[382659367,1756698640702,-531.45,0.00015925,2]
[382659369,1756698640711,-480.0,0.00015925,2]
[382659371,1756698640720,-480.0,0.00015925,2]
[382659373,1756698640731,-480.0,0.00015925,2]
[382659375,1756698640741,-989.83,0.00015925,2]
[382659378,1756698640751,-1003.19,0.00015925,2]
[382659379,1756698640760,-480.0,0.00015925,2]
[382659381,1756698640769,-1038.38,0.00015925,2]
[382659383,1756698640779,-480.0,0.00015925,2]
[382659385,1756698640788,-480.0,0.00015925,2]
[382659387,1756698640797,-480.0,0.00015925,2]
[382659389,1756698640806,-823.01,0.00015925,2]
[382659391,1756698640815,-480.0,0.00015925,2]
[382659393,1756698640824,-1188.28,0.00015925,2]
[382659395,1756698640834,-480.0,0.00015925,2]
[382659397,1756698640843,-543.66,0.00015925,2]
[382659399,1756698640853,-958.25,0.00015925,2]
[382659401,1756698640862,-689.14,0.00015925,2]
[382659403,1756698640872,-481.20206562,0.00015925,2]
[382659405,1756698640884,-726.77,0.00015925,2]
[382659407,1756698640893,-480.0,0.00015925,2]
[382659409,1756698640902,-1267.17,0.00015925,2]
[382659411,1756698640912,-480.0,0.00015925,2]
[382659413,1756698640921,-984.8,0.00015925,2]
[382659415,1756698640930,-575.05,0.00015925,2]
[382659417,1756698640940,-480.0,0.00015925,2]
[382659419,1756698640949,-480.0,0.00015925,2]
[382659421,1756698640958,-480.0,0.00015925,2]
[382659423,1756698640967,-481.71634681,0.00015925,2]
[382659425,1756698640977,-564.48,0.00015925,2]
[382659427,1756698640987,-749.95,0.00015925,2]
[382659429,1756698640996,-886.93,0.00015925,2]
[382659431,1756698641006,-1010.1,0.00015925,2]
[382659433,1756698641015,-480.0,0.00015925,2]
[382659435,1756698641025,-1422.64,0.00015925,2]
[382659437,1756698641038,-1163.0,0.00015925,2]
[382659439,1756698641047,-1163.0,0.00015925,2]
[382659441,1756698641057,-480.0,0.00015925,2]
[382659443,1756698641067,-480.0,0.00015925,2]
[382659445,1756698641076,-480.0,0.00015925,2]
[382659447,1756698641086,-666.57,0.00015925,2]
[382659449,1756698641095,-828.01,0.00015925,2]
[382659451,1756698641105,-480.0,0.00015925,2]
[382659453,1756698641115,-486.34,0.00015925,2]
[382659455,1756698641125,-480.0,0.00015925,2]
[382659457,1756698641135,-480.0,0.00015925,2]
[382659459,1756698641144,-480.0,0.00015925,2]
[382659461,1756698641154,-480.0,0.00015925,2]
[382659463,1756698641162,-608.43,0.00015925,2]
[382659465,1756698641172,-1388.5,0.00015925,2]
[382659467,1756698641182,-480.0,0.00015925,2]
[382659469,1756698641191,-1140.41,0.00015925,2]
[382659471,1756698641200,-637.91,0.00015925,2]
[382659473,1756698641210,-957.9,0.00015925,2]
[382659475,1756698641219,-578.69,0.00015925,2]
[382659477,1756698641227,-736.6,0.00015925,2]
[382659479,1756698641236,-1186.87,0.00015925,2]
[382659482,1756698641253,-480.0,0.00015925,2]
[382659484,1756698641262,-629.35,0.00015925,2]
[382659486,1756698641271,-482.62361852,0.00015925,2]
[382659488,1756698641280,-480.0,0.00015925,2]
[382659490,1756698641289,-481.9496529,0.00015925,2]
[382659492,1756698641298,-654.54,0.00015925,2]
[382659494,1756698641308,-543.73,0.00015925,2]
[382659496,1756698641317,-551.46,0.00015925,2]
[382659498,1756698641327,-527.50644784,0.00015925,2]
[382659499,1756698641336,-480.0,0.00015925,2]
[382659502,1756698641345,-706.3,0.00015925,2]
[382659503,1756698641355,-1235.23,0.00015925,2]
[382659505,1756698641364,-480.0,0.00015925,2]
[382659507,1756698641374,-480.0,0.00015925,2]
[382659510,1756698641383,-487.7,0.00015925,2]
[382659512,1756698641392,-480.0,0.00015925,2]
[382659513,1756698641401,-672.25,0.00015925,2]
[382659515,1756698641411,-480.0,0.00015925,2]
[382659517,1756698641419,-480.0,0.00015925,2]
[382659519,1756698641429,-286.71208656,0.00015925,2]
[382659522,1756698641439,-817.97,0.00015925,2]
[382659523,1756698641448,-790.18,0.00015925,2]
[382659525,1756698641458,-1017.43,0.00015925,2]
[382659527,1756698641467,-480.0,0.00015925,2]
[382659529,1756698641477,-292.30760586,0.00015926,2]
[382659531,1756698641486,-480.0,0.00015926,2]
[382659533,1756698641495,-480.0,0.00015926,2]
[382659535,1756698641511,-715.24,0.00015926,2]
[382659538,1756698641527,-480.0,0.00015926,2]
[382659539,1756698641536,-480.0,0.00015926,2]
[382659541,1756698641546,-480.0,0.00015926,2]
[382659544,1756698641556,-480.0,0.00015926,2]
[382659546,1756698641566,-481.24031827,0.00015926,2]
[382659548,1756698641575,-481.19986601,0.00015926,2]
[382659550,1756698641586,-480.0,0.00015926,2]
[382659552,1756698641598,-480.0,0.00015926,2]
[382659554,1756698641607,-809.58,0.00015926,2]
[382659556,1756698641616,-887.12,0.00015926,2]
[382659558,1756698641626,-481.90123479,0.00015926,2]
[382659560,1756698641635,-480.0,0.00015926,2]
[382659562,1756698641644,-543.41,0.00015926,2]
[382659564,1756698641653,-480.0,0.00015926,2]
[382659566,1756698641662,-481.15084301,0.00015926,2]
[382659568,1756698641672,-480.0,0.00015926,2]
[382659570,1756698641681,-481.5968499,0.00015926,2]
[382659572,1756698641690,-480.0,0.00015926,2]
[382659574,1756698641699,-480.0,0.00015926,2]
[382659576,1756698641708,-480.0,0.00015926,2]
[382659578,1756698641717,-500.0,0.00015926,2]
[382659580,1756698641727,-483.59585091,0.00015926,2]
[382659582,1756698641737,-480.0,0.00015926,2]
[382659584,1756698641747,-1178.81,0.00015926,2]
[382659586,1756698641755,-480.0,0.00015926,2]
[382659588,1756698641764,-406.80765003,0.00015926,2]
[382659590,1756698641773,-879.22,0.00015926,2]
[382659592,1756698641784,-480.0,0.00015926,2]
[382659594,1756698641793,-480.0,0.00015926,2]
[382659596,1756698641803,-480.0,0.00015926,2]
[382659598,1756698641814,-543.27,0.00015926,2]
[382659600,1756698641824,-480.95202241,0.00015926,2]
[382659602,1756698641834,-480.0,0.00015926,2]
[382659604,1756698641843,-480.0,0.00015926,2]
[382659606,1756698641856,-480.0,0.00015926,2]
[382659608,1756698641866,-480.0,0.00015926,2]
[382659610,1756698641875,-482.21072514,0.00015926,2]
[382659612,1756698641884,-480.0,0.00015926,2]
[382659614,1756698641894,-480.0,0.00015926,2]
[382659616,1756698641903,-725.39,0.00015926,2]
[382659618,1756698641912,-480.0,0.00015926,2]
[382659620,1756698641921,-480.0,0.00015926,2]
[382659622,1756698641930,-661.15,0.00015926,2]
[382659624,1756698641939,-1023.05,0.00015926,2]